Workbook

Sheet Overview
B4: The Acquisition of Dracula Glass
B5: Case C - Exhibits
B8: Worksheet | C8: Description
B9: C1 | C9: Raw materials, Dracula and St. Germain
B10: C2 | C10: Labor costs, Dracula and St. Germain
B11: C3 | C11: Unit forecasts, Dracula
B12: C4 | C12: Revenue forecasts, Dracula
B14: Labor | C14: Model to project labor costs, based on productivity.
B15: Raw Materials | C15: Model to project raw materials costs, based on productivity by product and raw materials price.

Sheet C1
A2: Exhibit 1
A3: Raw materials (R$ millions)
B5: Dracula Glass, Glass Containers | D5: St. Germain
A7: Millions of units | D7: Facility 1 | E7: Facility 2 | F7: Facility 3 | G7: Facility 4
A8: Beer | B8: ='C3'!B31 -> 4948.224 | D8: 2006.04731 | E8: 909.1860748 | F8: 453.6964535 | G8: 1919.389192
A9: Wines and spirits | B9: ='C3'!B32 -> 1011.626 | D9: 179.0067016 | E9: 316.6536861 | F9: 399.069763 | G9: 112.1826474
A10: Soft drinks | B10: ='C3'!B33 -> 393.472 | D10: 98.85682183 | E10: 102.509616 | F10: 192.4805664 | G10: 108.0878221
A11: Consumer products | B11: ='C3'!B34 -> 371.412 | D11: 92.95472365 | E11: 114.2149892 | F11: 133.598926 | G11: 22.48966896
A12: Total units | B12: =SUM(B8:B11) -> 6724.734 | D12: =SUM(D8:D11) -> 2376.865557 | E12: =SUM(E8:E11) -> 1442.564366 | F12: =SUM(F8:F11) -> 1178.845709 | G12: =SUM(G8:G11) -> 2162.14933
A14: Raw material tonnage
A15: Beer | B15: 19.792896 | D15: 7.653946929 | E15: 3.494495002 | F15: 1.767074794 | G15: 7.369640568
A16: Wines and spirits | B16: 4.215108333 | D16: 0.7412820178 | E16: 1.312647174 | F16: 1.659835062 | G16: 0.46455791
A17: Soft drinks | B17: 3.147776 | D17: 0.7557492121 | E17: 0.8075420024 | F17: 1.520083447 | G17: 0.827060063
A18: Consumer products | B18: 1.280731034 | D18: 0.3112157819 | E18: 0.3850096816 | F18: 0.4525730452 | G18: 0.07562927104
A19: Millions of tons | B19: =SUM(B15:B18) -> 28.43651137 | D19: =SUM(D15:D18) -> 9.46219394 | E19: =SUM(E15:E18) -> 5.99969386 | F19: =SUM(F15:F18) -> 5.399566349 | G19: =SUM(G15:G18) -> 8.736887812 | I19: Long-run
I20: Growth
A21: Purchase price per ton | B21: 65.05720677 | D21: 62.3 | E21: =D21 -> 62.3 | F21: =E21 -> 62.3 | G21: =F21 -> 62.3 | I21: ='C4'!H11 -> 0.0267906024
A22: Raw materials (R$ millions) | B22: =B19*B21 -> 1850 | D22: =D19*D21 -> 589.4946825 | E22: =E19*E21 -> 373.7809275 | F22: =F19*F21 -> 336.3929835 | G22: =G19*G21 -> 544.3081107

Sheet C2
A2: Exhibit 2
A3: Forging labor costs (R$ millions)
B5: Dracula Glass, Glass Containers | D5: St. Germain
A7: Line Item | D7: Facility 1 | E7: Facility 2 | F7: Facility 3 | G7: Facility 4
A8: Forging headcount (thousands of FTEs) | B8: 35.05555556 | D8: 11.58562111 | E8: 6.196663249 | F8: 5.456535969 | G8: 9.482019194
A9: Thousands units per FTE | B9: 191.8307639 | D9: 205.1565069 | E9: 232.7969599 | F9: 216.0428733 | G9: 228.0262554
A10: Number of units (millions) | B10: =B8*B9 -> 6724.734 | D10: =D8*D9 -> 2376.865557 | E10: =E8*E9 -> 1442.564366 | F10: =F8*F9 -> 1178.845709 | G10: =G8*G9 -> 2162.14933
I11: Long-run
A12: Forging headcount (thousands of FTEs) | B12: =B8 -> 35.05555556 | D12: =D8 -> 11.58562111 | E12: =E8 -> 6.196663249 | F12: =F8 -> 5.456535969 | G12: =G8 -> 9.482019194 | I12: Growth
A13: Forging salary (in R$) | B13: 36000 | D13: 38663.07259 | E13: 38840.98997 | F13: 40217.0615 | G13: 41738.04008 | I13: ='C4'!H11 -> 0.0267906024
A14: Forging labor costs ($R millions) | B14: =B12*B13/1000 -> 1262 | D14: =D12*D13/1000 -> 447.93571 | E14: =E12*E13/1000 -> 240.6845351 | F14: =F12*F13/1000 -> 219.4458426 | G14: =G12*G13/1000 -> 395.7608972

Sheet C3
A2: Exhibit 3
A3: Glass Containers, Projected Units
A5: Brazilian Market
A6: Projected Units
H7: CAGR
A8: Millions of bottles | B8: 2018 | C8: =($B8+1) & "F" -> 2019F | D8: =($B8+2) & "F" -> 2020F | E8: =($B8+3) & "F" -> 2021F | F8: =($B8+4) & "F" -> 2022F | H8: Forecast
A9: Beer | B9: 12886 | C9: =B9*(1+$H9) -> 13272.58 | D9: =C9*(1+$H9) -> 13670.7574 | E9: 14080.88012 | F9: 14503.30653 | H9: 0.03
A10: Wines and spirits | B10: 6569 | C10: =B10*(1+$H10) -> 6404.775 | D10: 6244.655625 | E10: 6088.539234 | F10: 5936.325754 | H10: -0.025
A11: Soft drinks | B11: 3392 | C11: 3425.92 | D11: 3460.1792 | E11: 3494.780992 | F11: 3529.728802 | H11: 0.01
A12: Consumer products | B12: 3439 | C12: 3593.755 | D12: 3755.473975 | E12: 3924.470304 | F12: 4101.071468 | H12: 0.045
A13: Total units, Brazil | B13: =SUM(B9:B12) -> 26286 | C13: =SUM(C9:C12) -> 26697.03 | D13: =SUM(D9:D12) -> 27131.0662 | E13: =SUM(E9:E12) -> 27588.67065 | F13: =SUM(F9:F12) -> 28070.43255 | H13: =RATE(COLUMN(F13) - COLUMN(B13), 0, -B13, F13) -> 0.01655563088
A16: Table 2
A17: Projected Market Share, Dracula Glass | H17: 4-Year
H18: Expected
A19: Millions of bottles | B19: =B8 -> 2018 | C19: =($B19+1) & "F" -> 2019F | D19: =($B19+2) & "F" -> 2020F | E19: =($B19+3) & "F" -> 2021F | F19: =($B19+4) & "F" -> 2022F | H19: Change
A20: Beer | B20: 0.384 | C20: =B20+$H20/4 -> 0.38525 | D20: =C20+$H20/4 -> 0.3865 | E20: =D20+$H20/4 -> 0.38775 | F20: =E20+$H20/4 -> 0.389 | H20: 0.005
A21: Wines and spirits | B21: 0.154 | C21: =B21+$H21/4 -> 0.159 | D21: 0.164 | E21: 0.169 | F21: 0.174 | H21: 0.02
A22: Soft drinks | B22: 0.116 | C22: 0.1185 | D22: 0.121 | E22: 0.1235 | F22: 0.126 | H22: 0.01
A23: Consumer products | B23: 0.108 | C23: 0.108 | D23: 0.108 | E23: 0.108 | F23: 0.108 | H23: 0
A24: Total share, Dracula | B24: =B35/B13 -> 0.255829491 | C24: =C35/C13 -> 0.2594190339 | D24: =D35/D13 -> 0.2628773996 | E24: =E35/E13 -> 0.2662061081 | F24: =F35/F13 -> 0.269406909 | H24: =F24-B24 -> 0.01357741801
A27: Table 3
A28: Projected Units, Dracula Glass
H29: CAGR
A30: Millions of bottles | B30: =B8 -> 2018 | C30: =($B30+1) & "F" -> 2019F | D30: =($B30+2) & "F" -> 2020F | E30: =($B30+3) & "F" -> 2021F | F30: =($B30+4) & "F" -> 2022F | H30: Forecast
A31: Beer | B31: =B9*B20 -> 4948.224 | C31: =C9*C20 -> 5113.261445 | D31: 5283.747735 | E31: 5459.861267 | F31: 5641.786238 | H31: =RATE(COLUMN(F31) - COLUMN(B31), 0, -B31, F31) -> 0.03333661642
A32: Wines and spirits | B32: =B10*B21 -> 1011.626 | C32: 1018.359225 | D32: 1024.123523 | E32: 1028.963131 | F32: 1032.920681 | H32: =RATE(COLUMN(F32) - COLUMN(B32), 0, -B32, F32) -> 0.005221450725
A33: Soft drinks | B33: =B11*B22 -> 393.472 | C33: 405.97152 | D33: 418.6816832 | E33: 431.6054525 | F33: 444.745829 | H33: =RATE(COLUMN(F33) - COLUMN(B33), 0, -B33, F33) -> 0.03109697504
A34: Consumer products | B34: =B12*B23 -> 371.412 | C34: 388.12554 | D34: 405.5911893 | E34: 423.8427928 | F34: 442.9157185 | H34: =RATE(COLUMN(F34) - COLUMN(B34), 0, -B34, F34) -> 0.045
A35: Total units, Dracula | B35: =SUM(B31:B34) -> 6724.734 | C35: =SUM(C31:C34) -> 6925.71773 | D35: =SUM(D31:D34) -> 7132.14413 | E35: =SUM(E31:E34) -> 7344.272643 | F35: =SUM(F31:F34) -> 7562.368467 | H35: =RATE(COLUMN(F35) - COLUMN(B35), 0, -B35, F35) -> 0.02978291193

Sheet C4
A2: Exhibit 4
A3: Glass Containers, Revenues
A6: $R millions | B6: ='C3'!$B$8 -> 2018 | C6: =($B6+1) & "F" -> 2019F | D6: =($B6+2) & "F" -> 2020F | E6: =($B6+3) & "F" -> 2021F | F6: =($B6+4) & "F" -> 2022F
A7: Units | B7: ='C3'!B35 -> 6724.734 | C7: ='C3'!C35 -> 6925.71773 | D7: ='C3'!D35 -> 7132.14413 | E7: ='C3'!E35 -> 7344.272643 | F7: ='C3'!F35 -> 7562.368467
A8: Average price | B8: 0.6826008208 | C8: 0.7006138874 | D8: 0.7192930132 | E8: 0.7386614559 | F8: 0.7587422607
A9: Revenue | B9: =B7*B8 -> 4590.308948 | C9: =C7*C8 -> 4852.254022 | D9: 5130.101442 | E9: 5424.931123 | F9: 5737.888547
H10: Average
A11: Price growth | C11: =C8/B8-1 -> 0.02638887339 | D11: =D8/C8-1 -> 0.02666108411 | E11: =E8/D8-1 -> 0.02692705522 | F11: =F8/E8-1 -> 0.02718539686 | H11: =AVERAGE(C11:F11) -> 0.0267906024

Sheet Labor (hidden)
B2: Participant Model: Labor Synergies
B3: Forging labor costs ($R millions)
D5: <-------------- Forecast --------------> | I5: St. Germain
B7: $R millions | C7: ='C3'!$B$8 -> 2018 | D7: =C7+1 -> 2019 | E7: =D7+1 -> 2020 | F7: =E7+1 -> 2021 | G7: =F7+1 -> 2022 | I7: Facility 1 | J7: Facility 2 | K7: Facility 3 | L7: Facility 4
B8: Forging headcount (thousands of FTEs) | C8: =C14/(C13/1000) -> 35.06558168 | D8: =D10/D9 -> 36.11359509 | E8: =E10/E9 -> 37.18998886 | F8: =F10/F9 -> 38.29611584 | G8: =G10/G9 -> 39.43335888 | I8: ='C2'!D8 -> 11.58562111 | J8: ='C2'!E8 -> 6.196663249 | K8: ='C2'!F8 -> 5.456535969 | L8: ='C2'!G8 -> 9.482019194
B9: Thousands units per FTE | C9: =C10/C8 -> 191.7759147 | D9: =C9 -> 191.7759147 | E9: =D9 -> 191.7759147 | F9: =E9 -> 191.7759147 | G9: =F9 -> 191.7759147 | I9: ='C2'!D9 -> 205.1565069 | J9: ='C2'!E9 -> 232.7969599 | K9: ='C2'!F9 -> 216.0428733 | L9: ='C2'!G9 -> 228.0262554
B10: Number of units (millions) | C10: ='C3'!B35 -> 6724.734 | D10: ='C3'!C35 -> 6925.71773 | E10: ='C3'!D35 -> 7132.14413 | F10: ='C3'!E35 -> 7344.272643 | G10: ='C3'!F35 -> 7562.368467 | I10: 2376.865557 | J10: 1442.564366 | K10: 1178.845709 | L10: 2162.14933
B12: Forging headcount (thousands of FTEs) | C12: =C8 -> 35.06558168 | D12: =D8 -> 36.11359509 | E12: =E8 -> 37.18998886 | F12: =F8 -> 38.29611584 | G12: =G8 -> 39.43335888 | I12: =I8 -> 11.58562111 | J12: =J8 -> 6.196663249 | K12: =K8 -> 5.456535969 | L12: =L8 -> 9.482019194
B13: Forging salary (in R$) | C13: ='C2'!B13 -> 36000 | D13: =C13*('C4'!C8/'C4'!B8) -> 36949.99944 | E13: =D13*('C4'!D8/'C4'!C8) -> 37935.12649 | F13: =E13*('C4'!E8/'C4'!D8) -> 38956.60773 | G13: =F13*('C4'!F8/'C4'!E8) -> 40015.65857 | I13: ='C2'!D13 -> 38663.07259 | J13: ='C2'!E13 -> 38840.98997 | K13: ='C2'!F13 -> 40217.0615 | L13: ='C2'!G13 -> 41738.04008
B14: Forging labor costs ($R millions) | C14: 1262.36094 | D14: =D12*D13/1000 -> 1334.397318 | E14: =E12*E13/1000 -> 1410.806931 | F14: =F12*F13/1000 -> 1491.886762 | G14: =G12*G13/1000 -> 1577.951825 | I14: =I12*I13/1000 -> 447.93571 | J14: =J12*J13/1000 -> 240.6845351 | K14: =K12*K13/1000 -> 219.4458426 | L14: =L12*L13/1000 -> 395.7608972

Sheet Raw Materials (hidden)
B2: Participant Model: Raw Materials Synergies
B3: Improvement in Raw Materials Expense (R$ millions)
D5: <-------------- Forecast --------------> | I5: St. Germain
B7: Millions of units | C7: ='C3'!$B$8 -> 2018 | D7: =C7+1 -> 2019 | E7: =D7+1 -> 2020 | F7: =E7+1 -> 2021 | G7: =F7+1 -> 2022 | I7: Facility 1 | J7: Facility 2 | K7: Facility 3 | L7: Facility 4
B8: Beer | C8: ='C3'!B31 -> 4948.224 | D8: ='C3'!C31 -> 5113.261445 | E8: ='C3'!D31 -> 5283.747735 | F8: ='C3'!E31 -> 5459.861267 | G8: ='C3'!F31 -> 5641.786238 | I8: 2006.04731 | J8: 909.1860748 | K8: 453.6964535 | L8: 1919.389192
B9: Wines and spirits | C9: ='C3'!B32 -> 1011.626 | D9: ='C3'!C32 -> 1018.359225 | E9: ='C3'!D32 -> 1024.123523 | F9: ='C3'!E32 -> 1028.963131 | G9: ='C3'!F32 -> 1032.920681 | I9: 179.0067016 | J9: 316.6536861 | K9: 399.069763 | L9: 112.1826474
B10: Soft drinks | C10: ='C3'!B33 -> 393.472 | D10: ='C3'!C33 -> 405.97152 | E10: ='C3'!D33 -> 418.6816832 | F10: ='C3'!E33 -> 431.6054525 | G10: ='C3'!F33 -> 444.745829 | I10: 98.85682183 | J10: 102.509616 | K10: 192.4805664 | L10: 108.0878221
B11: Consumer products | C11: ='C3'!B34 -> 371.412 | D11: ='C3'!C34 -> 388.12554 | E11: ='C3'!D34 -> 405.5911893 | F11: ='C3'!E34 -> 423.8427928 | G11: ='C3'!F34 -> 442.9157185 | I11: 92.95472365 | J11: 114.2149892 | K11: 133.598926 | L11: 22.48966896
B12: Total units | C12: =SUM(C8:C11) -> 6724.734 | D12: =SUM(D8:D11) -> 6925.71773 | E12: =SUM(E8:E11) -> 7132.14413 | F12: =SUM(F8:F11) -> 7344.272643 | G12: =SUM(G8:G11) -> 7562.368467 | I12: =SUM(I8:I11) -> 2376.865557 | J12: =SUM(J8:J11) -> 1442.564366 | K12: =SUM(K8:K11) -> 1178.845709 | L12: =SUM(L8:L11) -> 2162.14933
B14: Units per ton1
B15: Beer | C15: =C8/C21 -> 250 | D15: =C15 -> 250 | E15: =D15 -> 250 | F15: 250 | G15: 250 | I15: =I8/I21 -> 262.0931826 | J15: =J8/J21 -> 260.1766705 | K15: 256.75 | L15: =L8/L21 -> 260.445428
B16: Wines and spirits | C16: =C9/C22 -> 240 | D16: =C16 -> 240 | E16: 240 | F16: 240 | G16: 240 | I16: =I9/I22 -> 241.4825901 | J16: 241.2329012 | K16: 240.4273606 | L16: 241.4825901
B17: Soft drinks | C17: 125 | D17: 125 | E17: 125 | F17: 125 | G17: 125 | I17: 130.8063842 | J17: 126.94029 | K17: 126.625 | L17: 130.689205
B18: Consumer products | C18: 290 | D18: 290 | E18: 290 | F18: 290 | G18: 290 | I18: 298.682551 | J18: 296.6548496 | K18: 295.1985927 | L18: 297.3672581
B20: Millions of tons
B21: Beer | C21: ='C1'!B15 -> 19.792896 | D21: =D8/D15 -> 20.45304578 | E21: 21.13499094 | F21: 21.83944507 | G21: 22.56714495 | I21: 7.653946929 | J21: 3.494495002 | K21: 1.767074794 | L21: 7.369640568
B22: Wines and spirits | C22: ='C1'!B16 -> 4.215108333 | D22: 4.243163437 | E22: 4.267181344 | F22: 4.287346378 | G22: 4.303836171 | I22: 0.7412820178 | J22: 1.312647174 | K22: 1.659835062 | L22: 0.46455791
B23: Soft drinks | C23: ='C1'!B17 -> 3.147776 | D23: 3.24777216 | E23: 3.349453466 | F23: 3.45284362 | G23: 3.557966632 | I23: 0.7557492121 | J23: 0.8075420024 | K23: 1.520083447 | L23: 0.827060063
B24: Consumer products | C24: ='C1'!B18 -> 1.280731034 | D24: 1.338363931 | E24: 1.398590308 | F24: 1.461526872 | G24: 1.527295581 | I24: 0.3112157819 | J24: 0.3850096816 | K24: 0.4525730452 | L24: 0.07562927104
B25: Millions of tons | C25: =SUM(C21:C24) -> 28.43651137 | D25: =SUM(D21:D24) -> 29.28234531 | E25: =SUM(E21:E24) -> 30.15021606 | F25: =SUM(F21:F24) -> 31.04116194 | G25: =SUM(G21:G24) -> 31.95624334 | I25: =SUM(I21:I24) -> 9.46219394 | J25: =SUM(J21:J24) -> 5.99969386 | K25: =SUM(K21:K24) -> 5.399566349 | L25: =SUM(L21:L24) -> 8.736887812
B27: Purchase price ton1 | C27: =C28/C25 -> 65.05483582 | D27: =C27*(1+'C1'!$I21) -> 66.79769406 | E27: =D27*(1+'C1'!$I21) -> 68.58724452 | F27: =E27*(1+'C1'!$I21) -> 70.42473812 | G27: =F27*(1+'C1'!$I21) -> 72.31145928 | I27: ='C1'!D21 -> 62.3 | J27: ='C1'!E21 -> 62.3 | K27: ='C1'!F21 -> 62.3 | L27: ='C1'!G21 -> 62.3
B28: Raw materials (R$ millions)3 | C28: 1849.932578 | D28: =D25*D27 -> 1955.993143 | E28: =E25*E27 -> 2067.920241 | F28: =F25*F27 -> 2186.0657 | G28: =G25*G27 -> 2310.802589 | I28: =I25*I27 -> 589.4946825 | J28: =J25*J27 -> 373.7809275 | K28: =K25*K27 -> 336.3929835 | L28: =L25*L27 -> 544.3081107
B30: 1 Raw materials with no synergies in Case C will only approximate raw materials from Case A, because each product
B31: type uses different tonnage.
